bitfinex/quotes_BTCUSD_20251007
["timestamp","ask_amount","ask_price","bid_price","bid_amount"]
[1759881004859,0.662028,121410.0,121380.0,0.112]
[1759881005082,0.36288705,121410.0,121400.0,0.01617]
[1759881005323,0.86196564,121400.0,121380.0,0.112]
[1759881005570,0.01529,121390.0,121380.0,0.112]
[1759881005800,0.00762799,121390.0,121380.0,0.29632179]
[1759881006013,0.00762799,121390.0,121380.0,0.31249179]
[1759881006241,0.00762799,121390.0,121380.0,0.31866496]
[1759881006509,0.00015081,121390.0,121380.0,0.15389317]
[1759881006751,0.00015081,121390.0,121380.0,0.45386034]
[1759881006972,0.00315081,121390.0,121380.0,0.58490496]
[1759881007191,0.00315081,121390.0,121380.0,0.62409686]
[1759881007435,0.00715081,121390.0,121380.0,1.4764893]
[1759881007665,0.00715081,121390.0,121380.0,2.32056173]
[1759881007906,0.08313004,121420.0,121410.0,0.53488297]
[1759881008122,0.0830688,121420.0,121410.0,0.53538704]
[1759881008337,0.0830688,121420.0,121410.0,0.91409704]
[1759881008571,0.5,121460.0,121440.0,0.16468873]
[1759881008824,0.02270139,121460.0,121450.0,0.06515768]
[1759881009052,0.00756713,121460.0,121450.0,0.2394545]
[1759881009317,0.09068919,121460.0,121450.0,0.70850926]
[1759881009559,0.09069279,121460.0,121450.0,0.45782682]
[1759881009800,0.09069279,121460.0,121450.0,0.44820682]
[1759881009801,0.09069293,121460.0,121450.0,0.44820682]
[1759881010038,0.09069293,121460.0,121430.0,0.21507906]
[1759881010039,0.30394238,121460.0,121430.0,0.21507906]
[1759881010300,0.50440468,121460.0,121450.0,0.041]
[1759881010542,0.53933381,121460.0,121450.0,0.041]
[1759881010779,0.21824463,121460.0,121450.0,0.041]
[1759881011011,0.00515137,121460.0,121450.0,0.08969]
[1759881011261,0.02044137,121460.0,121450.0,0.29225]
[1759881011502,0.22760463,121460.0,121450.0,0.041]
[1759881011784,1.55354769,121460.0,121450.0,0.03]
[1759881012050,1.55354769,121460.0,121450.0,0.041]
[1759881012051,4.94572613,121460.0,121450.0,0.041]
[1759881012304,5.73631566,121460.0,121450.0,0.041]
[1759881012567,7.13918899,121460.0,121450.0,0.041]
[1759881012786,2.98217366,121460.0,121450.0,0.041]
[1759881012998,3.03908366,121460.0,121450.0,0.03]
[1759881013214,0.66467688,121450.0,121430.0,0.00993]
[1759881013433,0.64108531,121440.0,121420.0,0.05088]
[1759881013621,0.90950531,121440.0,121410.0,0.47613403]
[1759881013854,0.19153072,121450.0,121410.0,0.47613403]
[1759881013855,0.70482779,121460.0,121430.0,0.18087394]
[1759881014073,0.23528,121450.0,121430.0,0.22301394]
[1759881014271,1.05055023,121460.0,121440.0,0.10571206]
[1759881014507,1.05055023,121460.0,121450.0,0.18084682]
[1759881014508,0.07115137,121460.0,121450.0,0.18084682]
[1759881014721,0.00115137,121460.0,121450.0,0.22298682]
[1759881014928,0.00115137,121460.0,121450.0,0.45834682]
[1759881015153,0.00015137,121460.0,121450.0,0.45834682]
[1759881015373,0.00015137,121460.0,121450.0,0.37717206]
[1759881015596,0.00115137,121460.0,121450.0,0.26153]
[1759881016010,0.58414587,121460.0,121440.0,0.16468964]
[1759881016222,0.10775343,121460.0,121450.0,0.011]
[1759881016501,0.08527343,121460.0,121450.0,0.19184682]
[1759881016690,0.00015137,121460.0,121450.0,0.01617]
[1759881016865,0.07015137,121460.0,121450.0,0.01817]
[1759881017108,0.25210463,121460.0,121450.0,0.03117]
[1759881017325,0.08744137,121460.0,121450.0,0.11429206]
[1759881017535,0.56383381,121460.0,121450.0,0.11429206]
[1759881018050,0.07215137,121460.0,121450.0,0.27896888]
[1759881018267,0.07215137,121460.0,121450.0,0.31148888]
[1759881019682,0.07215137,121460.0,121450.0,0.11429206]
[1759881019915,0.73768707,121460.0,121450.0,0.09812206]
[1759881020113,0.56383381,121460.0,121450.0,0.11429206]
[1759881020345,0.08744137,121460.0,121450.0,0.11429206]
[1759881020928,0.07215137,121460.0,121450.0,0.11429206]
[1759881021395,0.07215137,121460.0,121450.0,0.31148888]
[1759881021742,0.00215137,121460.0,121450.0,0.31148888]
[1759881021947,0.00215137,121460.0,121450.0,0.32462888]
[1759881022779,0.00215137,121460.0,121450.0,0.33722888]
[1759881023010,0.00215137,121460.0,121450.0,0.84377322]
[1759881023327,0.00215137,121460.0,121450.0,1.18377322]
[1759881023482,0.00215137,121460.0,121450.0,1.02818078]
[1759881024095,0.00215137,121460.0,121450.0,1.50457322]
[1759881025332,0.00215137,121460.0,121450.0,1.50714389]
[1759881025593,0.00215137,121460.0,121450.0,1.03075145]
[1759881025807,0.00215137,121460.0,121450.0,1.50714389]
[1759881026018,0.00215137,121460.0,121450.0,1.03067145]
[1759881026230,0.00215137,121460.0,121450.0,1.50706389]
[1759881027087,0.00215137,121460.0,121450.0,1.51548752]
[1759881027523,0.00215137,121460.0,121450.0,1.03909508]
[1759881027727,0.00215137,121460.0,121450.0,0.95341508]
[1759881027949,0.00215137,121460.0,121450.0,1.51544752]
[1759881028346,0.00015137,121460.0,121450.0,0.70537508]
[1759881028578,0.00215137,121460.0,121450.0,1.04005508]
[1759881028788,0.00215137,121460.0,121450.0,1.51644752]
[1759881029250,0.00215137,121460.0,121450.0,1.57728796]
[1759881029702,0.00085972,121510.0,121500.0,0.16460905]
[1759881029929,0.00101104,121510.0,121500.0,0.53721111]
[1759881031058,0.00101104,121510.0,121500.0,0.30621111]
[1759881031282,0.00101104,121510.0,121500.0,0.54325111]
[1759881031706,0.00101104,121510.0,121500.0,0.53925111]
[1759881032140,0.00201104,121510.0,121500.0,0.30921111]
[1759881032355,0.00201104,121510.0,121500.0,0.54425111]
[1759881032576,0.00201104,121510.0,121500.0,0.54225111]
[1759881032785,0.00201104,121510.0,121500.0,0.54221111]
[1759881032986,0.00201104,121510.0,121500.0,0.54421111]
[1759881034246,0.49995348,121510.0,121500.0,0.51213111]
[1759881034449,0.02356104,121510.0,121500.0,0.51213111]
[1759881034879,0.00201104,121510.0,121500.0,0.54413111]
[1759881035615,0.93101898,121510.0,121500.0,0.09012206]
[1759881035827,1.70382898,121510.0,121500.0,0.007]
[1759881036044,1.71141907,121510.0,121500.0,0.007]
[1759881036236,1.23502663,121510.0,121500.0,0.007]
[1759881036436,1.71141907,121510.0,121500.0,0.007]
[1759881036691,1.00286363,121510.0,121500.0,0.007]
[1759881036906,1.47925607,121510.0,121500.0,0.007]
[1759881037121,1.32843507,121510.0,121500.0,0.007]
[1759881038388,0.85204263,121510.0,121500.0,0.007]
[1759881038594,1.32843507,121510.0,121500.0,0.007]
[1759881039393,1.39843507,121510.0,121500.0,0.007]
[1759881039740,0.16460905,121500.0,121490.0,0.00051397]
[1759881039972,0.64859158,121500.0,121490.0,0.00051397]
[1759881040169,0.70331158,121500.0,121490.0,0.00051397]
[1759881040560,0.22691914,121500.0,121490.0,0.00051397]
[1759881040791,0.06231009,121500.0,121490.0,0.00051397]
[1759881040973,0.05572,121500.0,121490.0,0.00651397]
[1759881041177,0.53211244,121500.0,121490.0,0.00651397]
[1759881041525,0.03086009,121500.0,121490.0,0.02855397]
[1759881041753,0.25811,121500.0,121490.0,0.02855397]
[1759881041961,0.93915158,121500.0,121490.0,0.00651397]
[1759881042160,0.46275914,121500.0,121490.0,0.00651397]
[1759881042367,0.93915158,121500.0,121490.0,0.00651397]
[1759881042563,0.46475914,121500.0,121490.0,0.00651397]
[1759881042766,0.94115158,121500.0,121490.0,0.00651397]
[1759881044008,0.43230914,121500.0,121490.0,0.00651397]
[1759881044216,0.90870158,121500.0,121490.0,0.00651397]
[1759881044419,0.94115158,121500.0,121490.0,0.00651397]
[1759881045095,0.26770009,121500.0,121490.0,0.02855397]
[1759881045302,0.73650244,121500.0,121490.0,0.02855397]
[1759881045943,0.76895244,121500.0,121490.0,0.00651397]
[1759881046150,0.93356149,121500.0,121490.0,0.00651397]
[1759881046355,0.05772,121500.0,121490.0,0.00651397]
[1759881046562,0.05772,121500.0,121490.0,0.32638089]
[1759881046563,0.23772,121500.0,121490.0,0.32638089]
[1759881046785,0.24533258,121500.0,121490.0,0.30991863]
[1759881047608,0.23772,121500.0,121490.0,0.27629863]
[1759881048994,0.93344149,121500.0,121490.0,0.00651397]
[1759881050902,0.22232905,121500.0,121490.0,0.00651397]
[1759881051127,0.54173495,121500.0,121490.0,0.00651397]
[1759881051473,0.55027156,121500.0,121490.0,0.00651397]
[1759881052069,1.026664,121500.0,121490.0,0.00651397]
[1759881052681,0.706344,121500.0,121490.0,0.00651397]
[1759881052887,1.026664,121500.0,121490.0,0.00651397]
[1759881053118,1.039304,121500.0,121490.0,0.00651397]
[1759881053325,0.39826251,121500.0,121490.0,0.17113657]
[1759881054252,0.39826251,121500.0,121490.0,0.00651397]
[1759881054253,0.57640156,121500.0,121490.0,0.00651397]
[1759881054679,1.039264,121500.0,121490.0,0.00651397]
[1759881055524,0.56287156,121500.0,121490.0,0.00651397]
[1759881055728,1.039264,121500.0,121490.0,0.00651397]
[1759881055956,1.052794,121500.0,121490.0,0.00651397]
[1759881056130,0.09151251,121500.0,121490.0,0.00651397]
[1759881056468,0.01062251,121500.0,121490.0,0.33749089]
[1759881056807,0.24522251,121500.0,121490.0,0.32102863]
[1759881057008,0.24522251,121500.0,121490.0,0.30849863]
[1759881057217,0.24522251,121500.0,121490.0,0.32102863]
[1759881057774,0.24523755,121500.0,121490.0,0.32102863]
[1759881058343,0.24523755,121500.0,121490.0,0.30849863]
[1759881058568,0.26734755,121500.0,121490.0,0.27523863]
[1759881058985,0.28067755,121500.0,121490.0,0.27523863]
[1759881059234,0.31350755,121500.0,121490.0,0.25425863]
[1759881059438,0.24523755,121500.0,121490.0,0.27523863]
[1759881059649,0.24523755,121500.0,121490.0,0.30849863]
[1759881060386,4.84961555,121500.0,121490.0,0.25425863]
[1759881060587,4.58600555,121500.0,121490.0,0.11061603]
[1759881060831,4.58600555,121500.0,121490.0,0.27523863]
[1759881060832,3.58220803,121500.0,121490.0,0.27523863]
[1759881061034,3.61503803,121500.0,121490.0,0.25425863]
[1759881061344,0.01063755,121500.0,121490.0,0.32102863]
[1759881061545,0.01063755,121500.0,121490.0,0.82343107]
[1759881061948,0.01063755,121500.0,121490.0,0.85358297]
[1759881062172,0.003,121500.0,121490.0,1.20599297]
[1759881063333,0.00101104,121510.0,121500.0,0.50460905]
[1759881063557,0.00101104,121510.0,121500.0,1.13592355]
[1759881063757,0.00101104,121510.0,121500.0,1.39154355]
[1759881064419,0.00101104,121510.0,121500.0,0.91515111]
[1759881064737,0.00101104,121510.0,121500.0,1.39154355]
[1759881065513,0.00101104,121510.0,121500.0,1.39454355]
[1759881065696,0.00101104,121510.0,121500.0,1.40054355]
[1759881066338,0.00101104,121510.0,121500.0,0.92415111]
[1759881066558,0.00101104,121510.0,121500.0,1.40054355]
[1759881067109,0.00101104,121510.0,121500.0,1.41295355]
[1759881069063,0.25011512,121570.0,121540.0,0.80336427]
[1759881069269,0.55563428,121570.0,121550.0,0.2476634]
[1759881069516,0.41440414,121570.0,121550.0,0.2476634]
[1759881069715,0.00256817,121560.0,121550.0,0.2476634]
[1759881069915,0.00256817,121560.0,121550.0,0.2686434]
[1759881070248,0.00256817,121560.0,121550.0,0.3144334]
[1759881071114,0.07083817,121560.0,121550.0,0.2476634]
[1759881071521,0.03800817,121560.0,121550.0,0.2686434]
[1759881071693,0.02467817,121560.0,121550.0,0.2696434]
[1759881072127,0.02967817,121560.0,121550.0,0.2696434]
[1759881072332,0.02967817,121560.0,121550.0,0.24509032]
[1759881073331,0.00756817,121560.0,121550.0,0.24509032]
[1759881074011,0.02967817,121560.0,121550.0,0.24509032]
[1759881076568,0.00756817,121560.0,121550.0,0.24509032]
[1759881076722,0.00756817,121560.0,121550.0,0.29088032]
[1759881077924,0.00756817,121560.0,121550.0,0.27835032]
[1759881078142,0.02967817,121560.0,121550.0,0.24509032]
[1759881079225,0.90576537,121560.0,121550.0,0.001]
[1759881079583,1.24576537,121560.0,121550.0,0.001]
[1759881080008,1.25872537,121560.0,121550.0,0.001]
[1759881080221,6.25366875,121560.0,121550.0,0.001]
[1759881080442,6.13699775,121560.0,121550.0,0.001]
[1759881080650,1.41799353,121560.0,121550.0,0.001]
[1759881080890,1.57799351,121560.0,121550.0,0.001]
[1759881081103,6.46753851,121560.0,121550.0,0.001]
[1759881081332,0.16458196,121520.0,121510.0,0.06619503]
[1759881081537,1.05862136,121520.0,121510.0,0.06619503]
[1759881081730,0.47828196,121520.0,121510.0,0.06619503]
[1759881081934,1.11709136,121520.0,121510.0,0.06619503]
[1759881082525,1.11709136,121520.0,121510.0,0.00050407]
[1759881082725,1.1251303,121520.0,121510.0,0.00050407]
[1759881082903,1.1311303,121520.0,121510.0,0.00050407]
[1759881083298,0.4923209,121520.0,121510.0,0.00050407]
[1759881083552,1.1311303,121520.0,121510.0,0.00050407]
[1759881083980,1.12309136,121520.0,121510.0,0.00050407]
[1759881084119,1.12309136,121520.0,121510.0,0.00150407]
[1759881085347,1.12309136,121520.0,121510.0,0.16609957]
[1759881085348,0.9585094,121520.0,121510.0,0.16609957]
[1759881085556,0.7239894,121520.0,121510.0,0.16609957]
[1759881085755,0.9453694,121520.0,121510.0,0.16609957]
[1759881086147,1.10995136,121520.0,121510.0,0.16609957]
[1759881086761,1.11046516,121520.0,121510.0,0.16609957]
[1759881086964,7.09940162,121520.0,121510.0,0.00150407]
[1759881087186,7.1231195,121520.0,121510.0,0.00150407]
[1759881087809,7.09940162,121520.0,121510.0,0.00150407]
[1759881088025,2.20985662,121520.0,121510.0,0.00150407]
[1759881088307,3.68066422,121520.0,121510.0,0.00150407]
[1759881088525,4.99001122,121520.0,121510.0,0.00150407]
[1759881088730,1.99912722,121520.0,121510.0,0.00150407]
[1759881089102,5.90162622,121520.0,121510.0,0.00150407]
[1759881089289,5.97835922,121520.0,121510.0,0.00150407]
[1759881089496,1.33652722,121520.0,121510.0,0.00150407]
[1759881089761,4.20333616,121520.0,121510.0,0.00150407]
[1759881089946,2.01868776,121520.0,121510.0,0.00150407]
[1759881090163,2.82203516,121520.0,121510.0,0.00150407]
[1759881090362,3.18538016,121520.0,121510.0,0.00150407]
[1759881090566,3.80239416,121520.0,121510.0,0.00150407]
[1759881090774,3.61860016,121520.0,121510.0,0.00150407]
[1759881090922,3.46806116,121520.0,121510.0,0.00150407]
[1759881091119,2.93022116,121520.0,121510.0,0.00150407]
[1759881091412,3.51047516,121520.0,121510.0,0.00150407]
[1759881091623,1.25340516,121520.0,121510.0,0.00150407]
[1759881091828,3.59530716,121520.0,121510.0,0.00150407]
[1759881092026,1.91604516,121520.0,121510.0,0.00150407]
[1759881092182,3.99655216,121520.0,121510.0,0.00150407]
[1759881092444,5.64943122,121520.0,121510.0,0.00150407]
[1759881092761,1.99916722,121520.0,121510.0,0.00150407]
[1759881092902,4.86722622,121520.0,121510.0,0.00150407]
[1759881093300,4.89523122,121520.0,121510.0,0.00150407]
[1759881093524,4.23260122,121520.0,121510.0,0.00150407]
[1759881093727,4.24017422,121520.0,121510.0,0.00150407]
[1759881093936,1.99916722,121520.0,121510.0,0.00150407]
[1759881094140,5.02635422,121520.0,121510.0,0.00150407]
[1759881094343,5.40423522,121520.0,121510.0,0.00150407]
[1759881094617,5.42288522,121520.0,121510.0,0.00150407]
[1759881094816,7.52752162,121520.0,121510.0,0.00150407]
[1759881095336,2.63797662,121520.0,121510.0,0.00150407]
[1759881095583,7.52752162,121520.0,121510.0,0.00050407]
[1759881095824,7.19033862,121520.0,121510.0,0.00050407]
[1759881095947,1.99716722,121520.0,121510.0,0.00050407]
[1759881096179,6.30893808,121520.0,121510.0,0.00050407]
[1759881096562,5.73612808,121520.0,121510.0,0.00050407]
[1759881096776,1.81474208,121520.0,121510.0,0.00050407]
[1759881096986,5.71536208,121520.0,121510.0,0.00050407]
[1759881097193,1.81474208,121520.0,121510.0,0.00050407]
[1759881097440,5.69821308,121520.0,121510.0,0.00050407]
[1759881097685,5.77259308,121520.0,121510.0,0.00050407]
[1759881097840,5.77671108,121520.0,121510.0,0.00050407]
[1759881098049,6.17309208,121520.0,121510.0,0.00050407]
[1759881098258,6.31997308,121520.0,121510.0,0.00050407]
[1759881098468,6.27501308,121520.0,121510.0,0.00050407]
[1759881098623,6.31808208,121520.0,121510.0,0.00050407]
[1759881099037,1.84042208,121520.0,121510.0,0.00050407]
[1759881099238,6.27501308,121520.0,121510.0,0.00050407]
[1759881099443,6.28880108,121520.0,121510.0,0.00050407]
[1759881099656,1.84042208,121520.0,121510.0,0.00050407]
[1759881099860,6.60993408,121520.0,121510.0,0.00050407]
[1759881100080,6.61560808,121520.0,121510.0,0.00050407]
[1759881100449,6.50955608,121520.0,121510.0,0.00050407]
[1759881100648,6.55431608,121520.0,121510.0,0.00050407]
[1759881100843,1.84042208,121520.0,121510.0,0.00050407]
[1759881101124,6.13549408,121520.0,121510.0,0.00050407]
[1759881101293,6.42707108,121520.0,121510.0,0.00050407]
[1759881101631,6.51714008,121520.0,121510.0,0.00050407]
[1759881101873,6.46210608,121520.0,121510.0,0.00050407]
[1759881102084,1.13148562,121520.0,121510.0,0.00050407]
[1759881102324,2.57622602,121520.0,121510.0,0.00050407]
[1759881102520,2.82272502,121520.0,121510.0,0.00050407]
[1759881102739,1.93577802,121520.0,121510.0,0.00050407]
[1759881102954,2.53661802,121520.0,121510.0,0.00050407]
[1759881103189,2.56901802,121520.0,121510.0,0.00050407]
[1759881103361,2.68482002,121520.0,121510.0,0.00050407]
[1759881103595,2.65542002,121520.0,121510.0,0.00050407]
[1759881103940,2.68482002,121520.0,121510.0,0.00050407]
[1759881104138,2.65542002,121520.0,121510.0,0.00050407]
[1759881104450,2.65583202,121520.0,121510.0,0.00050407]
[1759881104657,2.00167002,121520.0,121510.0,0.00050407]
[1759881104828,1.74461002,121520.0,121510.0,0.00050407]
[1759881105046,2.62591402,121520.0,121510.0,0.00050407]
[1759881105401,1.74461002,121520.0,121510.0,0.00050407]
[1759881105558,2.66152102,121520.0,121510.0,0.00050407]
[1759881105768,2.66176502,121520.0,121510.0,0.00050407]
[1759881105974,2.57910802,121520.0,121510.0,0.00050407]
[1759881106188,1.74101302,121520.0,121510.0,0.00050407]
[1759881106389,0.3114228,121520.0,121510.0,0.19890957]
[1759881106618,0.3531868,121520.0,121510.0,0.24374957]
[1759881107490,0.2390338,121520.0,121510.0,0.24374957]
[1759881107699,0.3531868,121520.0,121510.0,0.24374957]
[1759881107908,0.9919962,121520.0,121510.0,0.24374957]
[1759881108605,1.44066416,121520.0,121510.0,0.00050407]
[1759881108813,0.4254888,121520.0,121510.0,0.19890957]
[1759881109018,0.2390338,121520.0,121510.0,0.19890957]
[1759881109245,0.8778432,121520.0,121510.0,0.23048957]
[1759881110200,0.9000032,121520.0,121510.0,0.19890957]
[1759881110610,0.59856052,121530.0,121520.0,0.16458196]
[1759881110813,1.17392992,121530.0,121520.0,0.19839196]
[1759881110983,1.49396992,121530.0,121520.0,0.19839196]
[1759881111214,1.49448366,121530.0,121520.0,0.19839196]
[1759881111671,1.50548366,121530.0,121520.0,0.19939196]
[1759881111889,1.50548366,121530.0,121520.0,0.03481]
[1759881112025,1.34090342,121530.0,121520.0,0.19939196]
[1759881112228,1.10006714,121530.0,121520.0,0.24423196]
[1759881112428,1.16529455,121530.0,121520.0,0.16558196]
[1759881112977,1.17349935,121530.0,121520.0,0.16558196]
[1759881113762,1.20083935,121530.0,121520.0,0.001]
[1759881114089,6.41086341,121530.0,121520.0,0.001]
[1759881114453,5.20296641,121530.0,121520.0,0.001]
[1759881114664,5.29786841,121530.0,121520.0,0.001]
[1759881114882,5.55505741,121530.0,121520.0,0.001]
[1759881115090,5.74239341,121530.0,121520.0,0.001]
[1759881115403,5.68805741,121530.0,121520.0,0.001]
[1759881115608,5.77040741,121530.0,121520.0,0.001]
[1759881115811,5.75276741,121530.0,121520.0,0.001]
[1759881115958,5.74633741,121530.0,121520.0,0.001]
[1759881116163,1.52131841,121530.0,121520.0,0.001]
[1759881116401,5.57244041,121530.0,121520.0,0.001]
[1759881116654,5.48258641,121530.0,121520.0,0.001]
[1759881116811,5.08195541,121530.0,121520.0,0.001]
[1759881116981,5.49780441,121530.0,121520.0,0.001]
[1759881117397,5.32337241,121530.0,121520.0,0.001]
[1759881117615,5.29930241,121530.0,121520.0,0.001]
[1759881117833,5.51544341,121530.0,121520.0,0.001]
[1759881118371,5.27545441,121530.0,121520.0,0.001]
[1759881118576,1.52131841,121530.0,121520.0,0.001]
[1759881118930,5.49780441,121530.0,121520.0,0.001]
[1759881119077,5.53067841,121530.0,121520.0,0.001]
[1759881119279,5.49780441,121530.0,121520.0,0.001]
[1759881119470,5.49760241,121530.0,121520.0,0.001]
[1759881119672,5.49760341,121530.0,121520.0,0.001]
[1759881120347,1.52131841,121530.0,121520.0,0.001]
[1759881120529,5.27525241,121530.0,121520.0,0.001]
[1759881120687,5.49760341,121530.0,121520.0,0.001]
[1759881120892,5.49558941,121530.0,121520.0,0.001]
[1759881121138,5.07973941,121530.0,121520.0,0.001]
[1759881121333,5.52744641,121530.0,121520.0,0.001]
[1759881121569,5.51323041,121530.0,121520.0,0.001]
[1759881121704,5.48223241,121530.0,121520.0,0.001]
[1759881121910,5.46459241,121530.0,121520.0,0.001]
[1759881122256,5.28474041,121530.0,121520.0,0.001]
[1759881122469,5.33915341,121530.0,121520.0,0.001]
[1759881122641,5.47324341,121530.0,121520.0,0.001]
[1759881122825,5.61096448,121530.0,121520.0,0.001]
[1759881123023,4.04242448,121530.0,121520.0,0.001]
[1759881123274,4.53199048,121530.0,121520.0,0.001]
[1759881123484,4.73213348,121530.0,121520.0,0.001]
[1759881123694,4.60886248,121530.0,121520.0,0.001]
[1759881123921,2.50747335,121530.0,121520.0,0.001]
[1759881124136,1.21259695,121530.0,121520.0,0.001]
[1759881124347,2.30493835,121530.0,121520.0,0.001]
[1759881124495,2.15299035,121530.0,121520.0,0.001]
[1759881124695,2.18056635,121530.0,121520.0,0.001]
[1759881124902,1.17425635,121530.0,121520.0,0.001]
[1759881125111,1.61218435,121530.0,121520.0,0.0365]
[1759881125327,1.00577495,121530.0,121520.0,0.001]
[1759881125547,1.61218435,121530.0,121520.0,0.001]
[1759881125703,1.49417635,121530.0,121520.0,0.001]
[1759881125916,1.64458435,121530.0,121520.0,0.001]
[1759881126295,1.69831235,121530.0,121520.0,0.001]
[1759881126527,1.49417635,121530.0,121520.0,0.001]
[1759881126740,1.73071235,121530.0,121520.0,0.001]
[1759881127392,1.49417635,121530.0,121520.0,0.001]
[1759881127560,1.89499635,121530.0,121520.0,0.001]
[1759881127756,2.52554435,121530.0,121520.0,0.001]
[1759881127966,3.69310041,121530.0,121520.0,0.001]
[1759881128172,6.15349229,121530.0,121520.0,0.001]
[1759881128406,6.11124729,121530.0,121520.0,0.001]
[1759881128558,6.25948729,121530.0,121520.0,0.001]
[1759881128772,6.25934729,121530.0,121520.0,0.001]
[1759881128991,4.79934641,121530.0,121520.0,0.001]
[1759881129201,5.02652641,121530.0,121520.0,0.001]
[1759881129401,5.33435741,121530.0,121520.0,0.001]
[1759881129633,5.33468841,121530.0,121520.0,0.001]
[1759881129883,5.30365241,121530.0,121520.0,0.001]
[1759881130012,5.35251941,121530.0,121520.0,0.001]
[1759881130660,5.38512241,121530.0,121520.0,0.001]
[1759881130858,2.36591189,121530.0,121520.0,0.001]
[1759881131069,6.96972727,121530.0,121520.0,0.001]
[1759881131272,6.97737035,121530.0,121520.0,0.001]
[1759881131924,7.08537033,121530.0,121520.0,0.001]
[1759881132122,7.09637033,121530.0,121520.0,0.001]
[1759881132303,7.11237033,121530.0,121520.0,0.002]
[1759881132647,7.34326286,121530.0,121520.0,0.002]
[1759881132895,7.647665,121530.0,121520.0,0.002]
[1759881133098,6.85474868,121530.0,121520.0,0.002]
[1759881133259,6.77153843,121530.0,121520.0,0.002]
[1759881133456,6.61721093,121530.0,121520.0,0.002]
[1759881133729,7.37973091,121530.0,121520.0,0.002]
[1759881134023,7.27973093,121530.0,121520.0,0.002]
[1759881134465,6.85161093,121530.0,121520.0,0.002]
[1759881134671,7.27973093,121530.0,121520.0,0.002]
[1759881135023,7.30445428,121530.0,121520.0,0.002]
[1759881135234,7.35388428,121530.0,121520.0,0.002]
[1759881135676,4.82536213,121530.0,121520.0,0.002]
[1759881136001,5.01923906,121530.0,121520.0,0.002]
[1759881136109,5.89649706,121530.0,121520.0,0.002]
[1759881136309,5.90718806,121530.0,121520.0,0.002]
[1759881136542,5.93519406,121530.0,121520.0,0.002]
[1759881136971,2.35529206,121530.0,121520.0,0.002]
[1759881137327,5.93612406,121530.0,121520.0,0.002]
[1759881137466,5.57262408,121530.0,121520.0,0.002]
[1759881137668,6.50690508,121530.0,121520.0,0.002]
[1759881137870,6.27835208,121530.0,121520.0,0.002]
[1759881138298,6.89712724,121530.0,121520.0,0.002]
[1759881138496,4.75164624,121530.0,121520.0,0.002]
[1759881138694,2.32239524,121530.0,121520.0,0.002]
[1759881138895,6.23428424,121530.0,121520.0,0.002]
[1759881139078,6.45904524,121530.0,121520.0,0.002]
[1759881139286,6.46699124,121530.0,121520.0,0.002]
[1759881139495,7.21194024,121530.0,121520.0,0.002]
[1759881140281,2.32239524,121530.0,121520.0,0.002]
[1759881140484,7.03602124,121530.0,121520.0,0.002]
[1759881140681,7.04515024,121530.0,121520.0,0.002]
[1759881140886,2.32239524,121530.0,121520.0,0.002]
[1759881141121,7.04622024,121530.0,121520.0,0.002]
[1759881141324,7.04785624,121530.0,121520.0,0.002]
[1759881141525,7.04615224,121530.0,121520.0,0.002]
[1759881141768,7.04765224,121530.0,121520.0,0.002]
[1759881141960,2.32239524,121530.0,121520.0,0.002]
[1759881142183,7.04747724,121530.0,121520.0,0.002]
[1759881142627,7.04597824,121530.0,121520.0,0.002]
[1759881142873,7.04575024,121530.0,121520.0,0.002]
[1759881143088,7.13575024,121530.0,121520.0,0.002]
[1759881143287,7.13439624,121530.0,121520.0,0.002]
[1759881143521,2.32239524,121530.0,121520.0,0.002]
[1759881143693,6.89888124,121530.0,121520.0,0.002]
[1759881144005,6.91355224,121530.0,121520.0,0.002]
[1759881144206,7.13114524,121530.0,121520.0,0.002]
[1759881144425,7.07417024,121530.0,121520.0,0.002]
[1759881144648,7.09735124,121530.0,121520.0,0.002]
[1759881144888,1.65021524,121530.0,121520.0,0.002]
[1759881145115,1.8366538,121530.0,121520.0,0.002]
[1759881145313,1.11316236,121530.0,121520.0,0.002]
[1759881145552,1.74036174,121530.0,121520.0,0.002]
[1759881145755,1.28503239,121530.0,121520.0,0.002]
[1759881145960,1.9723862,121530.0,121520.0,0.002]
[1759881146174,0.40224395,121530.0,121520.0,0.21794015]
[1759881146383,1.45256539,121530.0,121520.0,0.23483196]
[1759881146588,0.97656395,121530.0,121520.0,0.23483196]
[1759881146798,1.16343518,121530.0,121520.0,0.23483196]
[1759881147012,1.1718408,121530.0,121520.0,0.23483196]
[1759881147237,1.33640921,121530.0,121520.0,0.23483196]
[1759881147430,0.68743374,121530.0,121520.0,0.24723196]
[1759881147631,0.84351518,121530.0,121520.0,0.24723196]
[1759881147836,0.02751374,121530.0,121520.0,0.35611402]
[1759881148038,0.26187374,121530.0,121520.0,0.35611402]
[1759881148443,0.25087374,121530.0,121520.0,0.35511402]
[1759881148643,0.23487374,121530.0,121520.0,0.35411402]
[1759881149000,0.23487374,121530.0,121520.0,0.35511402]
[1759881149993,0.23483374,121530.0,121520.0,0.36111402]
[1759881150336,0.00051374,121530.0,121520.0,0.36111402]
[1759881150536,0.23487374,121530.0,121520.0,0.36111402]
[1759881150770,0.47651518,121530.0,121520.0,0.36111402]
[1759881151278,0.71083518,121530.0,121520.0,0.36111402]
[1759881151465,0.23483374,121530.0,121520.0,0.36111402]
[1759881151699,0.71083518,121530.0,121520.0,0.36111402]
[1759881152282,0.71083518,121530.0,121520.0,0.33535402]
[1759881153248,0.00051374,121530.0,121520.0,0.36111402]
[1759881153446,0.71079518,121530.0,121520.0,0.36111402]
[1759881153870,0.00051374,121530.0,121520.0,0.36111402]
[1759881154091,0.47651518,121530.0,121520.0,0.36111402]
[1759881154252,0.71075518,121530.0,121520.0,0.36111402]
[1759881154481,0.47651518,121530.0,121520.0,0.36111402]
[1759881154677,0.71075518,121530.0,121520.0,0.36111402]
[1759881154877,0.23475374,121530.0,121520.0,0.36111402]
[1759881155121,0.71075518,121530.0,121520.0,0.36111402]
[1759881155282,0.23475374,121530.0,121520.0,0.36111402]
[1759881156086,0.00051374,121530.0,121520.0,0.36111402]
[1759881156732,0.47651518,121530.0,121520.0,0.36111402]
[1759881156939,0.71071518,121530.0,121520.0,0.36111402]
[1759881157158,0.65314297,121530.0,121520.0,0.36111402]
[1759881157928,0.41894297,121530.0,121520.0,0.36111402]
[1759881158322,0.00051374,121530.0,121520.0,0.36111402]
[1759881158517,0.65310297,121530.0,121520.0,0.36111402]
[1759881160359,0.41894297,121530.0,121520.0,0.36111402]
[1759881160582,0.65306297,121530.0,121520.0,0.36111402]
[1759881160790,0.41894297,121530.0,121520.0,0.36111402]